fUSD/lending_fUSD_20240214
["ID","MTS","AMOUNT","RATE_DAILY","PERIOD"]
[314034461,1707933032220,-403.76,0.00030601,2]
[314034463,1707933032229,-250.0,0.00030622,2]
[314034464,1707933032238,-156.72,0.00030628,2]
[314034466,1707933032247,-1771.8,0.00030722,2]
[314034468,1707933032256,-2908.0,0.000308,2]
[314034469,1707933032265,-2500.0,0.000308,2]
[314034471,1707933032275,-156.72,0.00030827,2]
[314034473,1707933032284,-23310.0,0.000309,2]
[314034475,1707933032293,-156.72,0.00031027,2]
[314034476,1707933032302,-1000.0,0.000312,2]
[314034478,1707933032311,-156.72,0.00031226,2]
[314034480,1707933032321,-156.72,0.00031426,2]
[314034481,1707933032330,-156.72,0.00031625,2]
[314034483,1707933032339,-29758.28510684,0.00031677,7]
[314034485,1707933032348,-4618.62581684,0.00031677,7]
[314034487,1707933032358,-7028.19397764,0.00031677,7]
[314034489,1707933032366,-156.72,0.00031825,2]
[314034491,1707933032375,-156.72,0.00032024,2]
[314034492,1707933032385,-180.0,0.00032219,2]
[314034494,1707933032394,-156.72,0.00032224,2]
[314034495,1707933032404,-403.76,0.00032865,2]
[314034497,1707933032413,-150.84,0.00032877,2]
[314034499,1707933032429,-263.56813846,0.00032978,3]
[314034501,1707933032443,-255.73800858,0.00032978,4]
[314034503,1707933032452,-959.48985657,0.00032978,4]
[314034505,1707933032462,-612.75737326,0.00032978,4]
[314034507,1707933032471,-456.27257925,0.00032978,4]
[314034508,1707933032481,-228.13628962,0.00032978,4]
[314034510,1707933032490,-185.67,0.00033304,2]
[314034512,1707933032500,-192.34,0.000335,2]
[314034514,1707933032509,-192.34,0.000335,2]
[314034516,1707933032518,-192.34,0.000335,2]
[314034518,1707933032527,-192.34,0.000335,2]
[314034519,1707933032537,-192.34,0.000335,2]
[314034521,1707933032546,-192.34,0.000335,2]
[314034544,1707933032816,-192.34,0.000335,2]
[314034545,1707933032826,-192.34,0.000335,2]
[314034546,1707933032836,-192.34,0.000335,2]
[314034547,1707933032844,-192.34,0.000335,2]
[314034548,1707933032853,-192.34,0.000335,2]
[314034549,1707933032862,-192.34,0.000335,2]
[314034550,1707933032872,-192.34,0.000335,2]
[314034551,1707933032881,-192.34,0.000335,2]
[314034552,1707933032890,-192.34,0.000335,2]
[314034553,1707933032899,-192.34,0.000335,2]
[314034554,1707933032908,-192.34,0.000335,2]
[314034555,1707933032917,-192.34,0.000335,2]
[314034557,1707933032926,-192.34,0.000335,2]
[314034558,1707933032935,-192.34,0.000335,2]
[314034560,1707933032944,-1000.0,0.00034,2]
[314034562,1707933032953,-1000.0,0.0003419,2]
[314034564,1707933032962,-150.0,0.00034548,10]
[314034566,1707933032971,-538.9121922,0.00034549,4]
[314034568,1707933032980,-311.94241579,0.00034615,2]
[314034570,1707933032990,-332.86631318,0.00034799,2]
[314034572,1707933032999,-332.86631318,0.00034799,2]
[314034574,1707933033008,-332.86631318,0.00034799,2]
[314034576,1707933033017,-332.86631318,0.00034799,2]
[314034578,1707933033026,-332.86631318,0.00034799,2]
[314034580,1707933033035,-74530.12636012,0.00035,4]
[314034583,1707933033048,-403.76,0.00035129,2]
[314034584,1707933033059,-1119.16504648,0.00035413,7]
[314034586,1707933033069,-4551.963,0.00035507,2]
[314034588,1707933033078,-7501.7658,0.00035507,2]
[314034590,1707933033087,-676.66211325,0.00035515,2]
[314034591,1707933033097,-1285.78167854,0.00035515,8]
[314034593,1707933033106,-153.75236828,0.00035515,2]
[314034594,1707933033115,-199.725388,0.00035515,8]
[314034595,1707933033124,-219.15005003,0.00035515,2]
[314034596,1707933033133,-597.9016424,0.00035515,2]
[314034597,1707933033142,-1554.55928874,0.00035515,2]
[314034598,1707933033151,-530.46488515,0.00035516,2]
[314034599,1707933033160,-259.1112653,0.00035516,2]
[314034600,1707933033169,-331.87496398,0.00035516,2]
[314034601,1707933033179,-289.12714913,0.00035516,2]
[314034602,1707933033189,-5000.0,0.00035518,3]
[314034603,1707933033199,-158.38497608,0.00035577,2]
[314034604,1707933033209,-192.34,0.000356,3]
[314034605,1707933033218,-192.34,0.000356,3]
[314034606,1707933033227,-192.34,0.000356,3]
[314034607,1707933033237,-192.34,0.000356,3]
[314034608,1707933033246,-192.34,0.000356,3]
[314034609,1707933033255,-192.34,0.000356,3]
[314034610,1707933033264,-192.34,0.000356,3]
[314034611,1707933033274,-192.34,0.000356,3]
[314034612,1707933033284,-192.34,0.000356,3]
[314034613,1707933033293,-192.34,0.000356,3]
[314034614,1707933033302,-192.34,0.000356,3]
[314034615,1707933033312,-192.34,0.000356,3]
[314034616,1707933033323,-192.34,0.000356,3]
[314034617,1707933033333,-192.34,0.000356,3]
[314034618,1707933033342,-192.34,0.000356,3]
[314034619,1707933033351,-192.34,0.000356,3]
[314034620,1707933033363,-192.34,0.000356,3]
[314034621,1707933033373,-192.34,0.000356,3]
[314034622,1707933033382,-192.34,0.000356,3]
[314034623,1707933033392,-192.34,0.000356,3]
[314034624,1707933033401,-218.40453946,0.00035605,2]
[314034625,1707933033411,-150.0,0.00035612,2]
[314034626,1707933033422,-1227.03597145,0.00035613,4]
[314034627,1707933033432,-10706.29066502,0.00035613,2]
[314034628,1707933033452,-59433.1200684,0.00035613,2]
[314034629,1707933033462,-155.15728297,0.00035613,4]
[314034630,1707933033471,-341.32172271,0.00035614,4]
[314034631,1707933033481,-1824.02747894,0.00035614,4]
[314034632,1707933033490,-938.20137126,0.00035615,2]
[314034633,1707933033500,-697.6684985,0.00035615,60]
[314034634,1707933033509,-365.96161743,0.00035615,4]
[314034635,1707933033519,-459.82985158,0.00035615,2]
[314034636,1707933033528,-1591.80252541,0.00035615,2]
[314034637,1707933033538,-1909.40818711,0.00035615,4]
[314034638,1707933033548,-5690.15244026,0.00035615,2]
[314034639,1707933033557,-199.30256634,0.00035615,2]
[314034640,1707933033568,-277230.62557318,0.00035615,2]
[314034641,1707933033580,-736.83085818,0.00035615,2]
[314034654,1707933037675,-191.45589852,0.00022281,2]
[314034655,1707933037684,-1805.77615818,0.00035615,3]
[314034656,1707933037696,-598.24385606,0.00035615,3]
[314034657,1707933037784,-2141.86916972,0.00035615,3]
[314034658,1707933037796,-34530.07170615,0.00035615,3]
[314034659,1707933037993,-191.4558984,0.00022978,2]
[314034661,1707933038003,-2267.00197137,0.00035615,3]
[314034664,1707933038015,-504.77699895,0.00035615,3]
[314034666,1707933038027,-2983.28762309,0.00035615,3]
[314034668,1707933038039,-995.81699524,0.00035615,3]
[314034670,1707933038051,-1190.73171,0.00035615,3]
[314034674,1707933038079,-861007.32701441,0.00035615,3]
[314034676,1707933038088,-197664.94618304,0.00035615,2]
[314034833,1707933041013,-2145.36245846,0.00031677,7]
[314034834,1707933041071,-888.76692811,0.00031677,7]
[314034835,1707933041083,-2323.37076607,0.00031677,7]
[314034836,1707933041092,-147854.69538993,0.00035615,2]
[314034837,1707933041188,-407.55685195,0.00035615,2]
[314034838,1707933041200,-13948.77296061,0.00035615,2]
[314034839,1707933041244,-224.93716217,0.00022182,2]
[314034841,1707933041254,-93.39181383,0.00035615,2]
[314034862,1707933042679,-2955.98686359,0.00035615,2]
[314034864,1707933042690,-413.8910008,0.00035615,2]
[314034867,1707933042702,-917.0,0.00035615,2]
[314034870,1707933042748,-3692.35337584,0.00035615,2]
[314034872,1707933042762,-3481.53713193,0.00035615,2]
[314034874,1707933042847,-5014.3093,0.00035615,2]
[314034876,1707933042906,-191.4558984,0.00023674,2]
[314034877,1707933042915,-197248.32605494,0.00035615,2]
[314034878,1707933042926,-24178.27426369,0.00035615,2]
[314034879,1707933042937,-2457.09624937,0.00035615,2]
[314034880,1707933042948,-1321.86465,0.00035615,2]
[314034881,1707933042959,-306.58342091,0.00035615,2]
[314034915,1707933045657,-2583.75,0.00035615,2]
[314034957,1707933045906,-3442.1658603,0.00035615,2]
[314034960,1707933045918,-2638.20054226,0.00035615,2]
[314035008,1707933086392,1534.18822091,0.00018,2]
[314035009,1707933094935,750.0,0.0002,2]
[314035010,1707933121202,6246.97930505,0.000155,2]
[314035011,1707933125335,771.39106144,0.0002,2]
[314035013,1707933247883,6353.48781483,0.0002,2]
[314035014,1707933250830,160.02680308,0.00023471,7]
[314035015,1707933546132,150.0,0.00022,2]
[314035016,1707933603591,178.54203763,0.0002189,2]
[314035017,1707933614257,150.0,0.00022,2]
[314035018,1707933634759,171.3,0.00018981,2]
[314035019,1707933755418,200.0,0.00021884,2]
[314035020,1707933804503,363.87,0.00019966,2]
[314035021,1707933808252,500.0,0.00021884,2]
[314035022,1707933811982,200.0,0.00021874,2]
[314035023,1707933816560,200.0,0.00021874,2]
[314035024,1707933830315,2723.64,0.00021874,2]
[314035025,1707933839319,24113.88,0.00021874,2]
[314035026,1707933850607,10000.0,0.00021918,2]
[314035027,1707933851886,250.0,0.00021874,2]
[314035028,1707933853023,250.0,0.00021918,2]
[314035029,1707933871124,245.912508,0.00022118,2]
[314035030,1707934003650,192.51,0.00021868,2]
[314035031,1707934008590,2000.0,0.00021868,2]
[314035037,1707934123496,276.98,0.00021868,2]
[314035038,1707934131988,175.74,0.00016712,2]
[314035045,1707934165573,150.0,0.00021868,2]
[314035046,1707934178545,23900.0,0.00021852,2]
[314035050,1707934194587,1000.0,0.00021877,2]
[314035051,1707934206947,193.78,0.00021877,2]
[314035052,1707934211626,165.92,0.00021877,2]
[314035060,1707934231825,-363.87,0.0002223,2]
[314035061,1707934231835,-86.13,0.00022385,2]
[314035062,1707934231885,-137.47,0.00022385,2]
[314035063,1707934231894,-161.87,0.00022438,2]
[314035064,1707934231903,-164.96,0.00022539,2]
[314035065,1707934231913,-161.87,0.00022585,2]
[314035066,1707934231922,-1507.4732,0.00022631,2]
[314035067,1707934231931,-161.87,0.00022731,2]
[314035068,1707934231940,-150.0,0.00022769,2]
[314035069,1707934231950,-170.5174083,0.000228,2]
[314035070,1707934231960,-170.51740814,0.00022805,2]
[314035071,1707934231969,-219.11,0.00022805,2]
[314035072,1707934231979,-170.51740814,0.00022811,2]
[314035073,1707934231988,-170.51740814,0.00022816,2]
[314035074,1707934231998,-170.51740814,0.00022821,2]
[314035075,1707934232010,-170.51740814,0.00022826,2]
[314035076,1707934232020,-170.51740814,0.00022832,2]
[314035077,1707934232029,-170.51740814,0.00022837,2]
[314035078,1707934232038,-170.51740814,0.00022842,2]
[314035079,1707934232048,-170.51740814,0.00022847,2]
[314035080,1707934232058,-170.51740814,0.00022853,2]
[314035081,1707934232067,-170.51740814,0.00022858,2]
[314035082,1707934232076,-170.51740814,0.00022863,2]
[314035083,1707934232086,-170.51740814,0.00022868,2]
[314035084,1707934232095,-116.73308588,0.00022874,2]
[314035085,1707934232119,-53.78432226,0.00022874,2]
[314035086,1707934232130,-161.87,0.00022877,2]
[314035088,1707934232140,-92.71769672,0.00022879,2]
[314035091,1707934232160,-77.79971142,0.00022879,2]
[314035093,1707934232169,-170.51740814,0.00022884,2]
[314035095,1707934232179,-170.51740814,0.00022889,2]
[314035097,1707934232188,-81.1654723,0.00022895,2]
[314035101,1707934232212,-89.35193584,0.00022895,2]
[314035103,1707934232221,-170.51740814,0.000229,2]
[314035104,1707934232230,-909.06358918,0.000229,2]
[314035105,1707934232245,-1095.58699136,0.000229,2]
[314035149,1707934238554,-5822.9895,0.000229,2]
[314035152,1707934238563,-199.725388,0.000229,2]
[314035154,1707934238573,-1192.29249601,0.000229,2]
[314035156,1707934238582,-230.10755253,0.000229,2]
[314035157,1707934238591,-979.26941567,0.000229,2]
[314035160,1707934238603,-172.74084352,0.000229,2]
[314035162,1707934238612,-221.249976,0.000229,2]
[314035164,1707934238621,-4509.35363315,0.000229,2]
[314035166,1707934238632,-353.64325678,0.000229,2]
[314035168,1707934238641,-4254.93875943,0.000229,2]
[314035170,1707934238650,-218.40453947,0.0002299,2]
[314035172,1707934238660,-71398.96430603,0.00023,2]
[314035174,1707934238672,-449.35725503,0.00023,2]
[314035176,1707934238684,-4486.13012809,0.00023,2]
[314035178,1707934238696,-10321.0707499,0.00023,2]
[314035181,1707934238708,-851.48150281,0.00023,2]
[314035200,1707934240485,-8680.0,0.00023,2]
[314035201,1707934240561,-1020.60823767,0.00023,2]
[314035202,1707934240572,-472.18439724,0.00023,2]
[314035203,1707934240654,-202.25436777,0.000229,2]
[314035204,1707934240665,-13084.1025846,0.00023,2]
[314035205,1707934241379,-38007.97118782,0.00023,2]
[314035206,1707934241395,-15826.75521881,0.00023,2]
[314035207,1707934241409,-12918.82441201,0.00023,2]
[314035215,1707934241596,258.62,0.00022,2]
[314035273,1707934242880,514.37,0.00022137,2]
[314035274,1707934242967,-596.29208534,0.00023,2]
[314035275,1707934243026,-516.8145747,0.00023,2]
[314035276,1707934243039,-4996.67822451,0.00023,2]
[314035277,1707934243052,-6024.49258198,0.00023,2]
[314035278,1707934243065,-2093.49587936,0.00023,2]
[314035279,1707934243076,-12913.60086493,0.00023,2]
[314035280,1707934243088,-5309.38258157,0.00023,2]
[314035281,1707934243100,-6340.72684222,0.00023,2]
[314035282,1707934243112,-701.42089632,0.00023,2]
[314035283,1707934243124,-963.20491709,0.00023,2]
[314035284,1707934243141,-2503.0,0.00023,2]
[314035285,1707934243153,-470.02665923,0.00023,2]
[314035286,1707934243174,-529.73999,0.00023,2]
[314035287,1707934243185,-574.08241182,0.00023,2]
[314035289,1707934243196,-594.743224,0.00023,2]
[314035309,1707934245836,-6226.50697185,0.000229,2]
[314035310,1707934245848,-2586.24333914,0.000229,2]
[314035311,1707934245858,-3250.70833574,0.00023,2]
[314035312,1707934245897,-423.86413922,0.00023,2]
[314035313,1707934246012,-216748.97615519,0.00023,2]
[314035314,1707934246023,-2650.39642541,0.00023,2]
[314035315,1707934246072,-77471.62855615,0.00023,2]
[314035316,1707934246136,-2133.57886684,0.00023,2]
[314035317,1707934246150,-1999.72451456,0.00023,2]
[314035318,1707934246197,-510.10761991,0.00023,2]
[314035319,1707934246208,-298.05724846,0.00023,2]
[314035326,1707934357930,198.82,0.00025885,120]
[314035327,1707934577318,166.76367731,0.0002315,7]
[314035328,1707934999509,250.0,0.00021918,2]
[314035329,1707935054516,1004.1,0.00021797,2]
[314035330,1707935176470,150.0,0.00021797,2]
[314035331,1707935200007,151.75,0.0002196,2]
[314035332,1707935202146,-176.02240479,0.00022411,2]
[314035333,1707935212339,800.0,0.00021797,2]
[314035334,1707935230277,200.0,0.00021797,2]
[314035335,1707935245116,163.85,0.00021797,2]
[314035336,1707935245470,208.1,0.00021797,2]
[314035337,1707935255751,151.75,0.00022036,2]
[314035338,1707935256031,151.75,0.00022113,2]
[314035339,1707935282407,200.0,0.00021797,2]
[314035340,1707935285956,226.4,0.00021797,2]
[314035341,1707935289288,470.77891623,0.00022,2]
[314035342,1707935330448,152.47,0.00021797,2]
[314035344,1707935396858,250.0,0.00021797,2]
[314035345,1707935398969,370.96,0.00019879,2]
[314035346,1707935399204,370.96,0.00022143,2]
[314035347,1707935417324,1479.12,0.00021971,2]
[314035348,1707935424922,7820.33,0.00021918,2]
[314035350,1707935432084,-151.75,0.00022189,2]
[314035351,1707935432095,-151.75,0.00022265,2]
[314035352,1707935432104,-339.85217004,0.00022334,2]
[314035353,1707935432139,-921.96302338,0.00022334,2]
[314035354,1707935432149,-151.75,0.00022342,2]
[314035355,1707935432158,-151.75,0.00022418,2]
[314035356,1707935432167,-156.89216726,0.0002246,2]
[314035357,1707935432177,-151.75,0.00022494,2]
[314035358,1707935432186,-150.9385784,0.00022531,2]
[314035359,1707935432196,-150.9385784,0.00022531,2]
[314035360,1707935432205,-150.9385784,0.00022531,2]
[314035361,1707935432215,-150.0,0.00022531,2]
[314035362,1707935432224,-15132.57907416,0.00022532,2]
[314035363,1707935432236,-1310.51141864,0.00022532,2]
[314035364,1707935432249,-2495.2,0.00022532,2]
[314035365,1707935432270,-362.1013399,0.00022532,2]
[314035366,1707935432282,-650.20379718,0.00022532,2]
[314035367,1707935432291,-150.99,0.00022532,2]
[314035368,1707935432301,-499.99,0.00022532,2]
[314035369,1707935432310,-2405.72,0.00022532,2]
[314035370,1707935432320,-22415.38,0.00022532,2]
[314035371,1707935432330,-150.0,0.00022544,2]
[314035372,1707935432339,-1007.8,0.0002256,2]
[314035373,1707935432350,-156.89216723,0.0002257,2]
[314035374,1707935432361,-151.75,0.0002257,2]
[314035375,1707935432371,-151.75,0.00022647,2]
[314035376,1707935432381,-156.89216723,0.0002268,2]
[314035377,1707935432390,-1261.81519342,0.0002269,2]
[314035378,1707935432399,-1236.87723662,0.000227,2]
[314035379,1707935432410,-329.0,0.00022705,2]
[314035380,1707935432419,-151.75,0.00022723,2]
[314035381,1707935432428,-1236.87723662,0.0002275,2]
[314035382,1707935432438,-44294.0,0.0002277,2]
[314035383,1707935432447,-156.89216723,0.0002279,2]
[314035384,1707935432459,-151.75,0.00022799,2]
[314035385,1707935432468,-450.7539,0.000228,2]
[314035386,1707935432478,-1415.6904,0.000228,2]
[314035387,1707935432487,-869.5261,0.000228,2]
[314035388,1707935432496,-3676.8466,0.000228,2]
[314035389,1707935432506,-1000.0,0.000228,2]
[314035390,1707935432516,-15664.50035749,0.000228,2]
[314035391,1707935432537,-5650.72779891,0.000228,2]
[314035392,1707935432549,-2245.0,0.000228,2]
[314035397,1707935438192,-114147.6130436,0.000228,2]
[314035398,1707935438201,-252.5804,0.000228,2]
[314035399,1707935438211,-1236.87723662,0.000228,2]
[314035400,1707935438219,-325.12,0.0002285,2]
[314035401,1707935438229,-150.99,0.0002285,2]
[314035402,1707935438238,-151.75,0.00022876,2]
[314035403,1707935438247,-1619.6444,0.000229,2]
[314035404,1707935438255,-110244.2409269,0.000229,2]
[314035405,1707935438295,-1197.93357264,0.000229,2]
[314035406,1707935438307,-133557.82550046,0.000229,2]
[314035407,1707935438316,-70886.2822,0.000229,2]
[314035408,1707935438325,-1132.5229,0.000229,2]
[314035409,1707935438334,-158.3062,0.000229,2]
[314035410,1707935438343,-426677.28179212,0.000229,2]
[314035412,1707935438367,-1495.30193588,0.000229,2]
[314035414,1707935438378,-3069.98108202,0.000229,2]
[314035417,1707935438394,-2439.9798142,0.000229,2]
[314035419,1707935438408,-25858.78369271,0.000229,2]
[314035422,1707935438440,-24965.7705804,0.000229,2]
[314035424,1707935438453,-14485.9407366,0.000229,2]
[314035430,1707935441468,-4968.76368518,0.000229,2]
[314035445,1707935443115,-738.02044226,0.000229,2]
[314035446,1707935443126,-506.0082945,0.000229,2]
[314035447,1707935443138,-7856.73899255,0.000229,2]
[314035448,1707935443149,-2347.06209764,0.000229,2]
[314035449,1707935443160,-7550.68471663,0.000229,2]
[314035450,1707935443172,-842.23467399,0.000229,2]
[314035451,1707935443183,-652.97409715,0.000229,2]
[314035452,1707935443195,-25679.81830862,0.000229,2]
[314035453,1707935443206,-486838.45918755,0.000229,2]
[314035454,1707935443217,-1016.982,0.000229,2]
[314035455,1707935443226,-210.0,0.000229,2]
[314035456,1707935443234,-373.84669234,0.000229,2]
[314035457,1707935443243,-4363.96843192,0.000229,2]
[314035458,1707935443252,-217.71684085,0.000229,2]
[314035459,1707935443262,-156.89216723,0.000229,2]
[314035460,1707935443271,-806.43461392,0.000229,2]
[314035461,1707935443281,-200.82667809,0.000229,2]
[314035462,1707935443289,-192.75143274,0.000229,2]
[314035463,1707935443298,-226.90316116,0.000229,2]
[314035464,1707935443308,-151.75,0.00022952,2]
[314035465,1707935443317,-190.20638325,0.0002299,2]
[314035466,1707935443326,-190.20638325,0.0002299,2]
[314035467,1707935443335,-190.20638325,0.0002299,2]
[314035468,1707935443344,-1850603.45114653,0.00023,2]
[314035469,1707935443363,-441346.70898577,0.00023,2]
[314035470,1707935443373,-221924.42987316,0.00023,2]
[314035471,1707935443392,-9837.75377476,0.00023,2]
[314035472,1707935443405,-2180.55869615,0.00023,2]
[314035473,1707935443417,-1150.49999953,0.00023,2]
[314035476,1707935443464,-413.59633357,0.00023,2]
[314035481,1707935443484,-10170.29548669,0.00023,2]
[314035499,1707935446069,-573.27155235,0.00023,2]
[314035500,1707935446127,-114847.8681973,0.00023,2]
[314035501,1707935446190,-838.96810783,0.00023,2]
[314035502,1707935446201,-25618.67163844,0.00023,2]
[314035503,1707935446247,-168100.60919948,0.00023,2]
[314035504,1707935446256,-1261.81519342,0.00023023,2]
[314035505,1707935446266,-151.75,0.00023028,2]
[314035506,1707935446275,-151.75,0.00023105,2]
[314035507,1707935446285,-1004.1,0.0002344,2]
[314035508,1707935446293,-500.0,0.000237,2]
[314035509,1707935446302,-154.11,0.00023933,2]
[314035510,1707935446312,-329.0,0.00024349,2]
[314035511,1707935446321,-698.23,0.00024384,2]
[314035512,1707935446330,-370.96,0.00024407,2]
[314035513,1707935446339,-4363.96843182,0.00024438,2]
[314035514,1707935446348,-800.0,0.00024521,2]
[314035515,1707935446363,-373.84669234,0.0002465,2]
[314035516,1707935446372,-250.0,0.00024658,2]
[314035517,1707935446381,-210.0,0.00024784,2]
[314035518,1707935446390,-255.2,0.00025,2]
[314035519,1707935446402,-1250.0,0.00025,3]
[314035520,1707935446411,-1004.1,0.00025084,2]
[314035521,1707935446421,-250.0,0.00025639,2]
[314035522,1707935446430,-200.0,0.00025687,2]
[314035523,1707935446441,-288.67,0.00025715,2]
[314035524,1707935446450,-2628.79,0.00025777,2]
[314035525,1707935446460,-2000.0,0.00025821,2]
[314035526,1707935446469,-4363.96843182,0.00025977,2]
[314035527,1707935446478,-329.0,0.00025993,2]
[314035528,1707935446487,-152.47,0.00026156,2]
[314035530,1707935446496,-373.84669234,0.000264,2]
[314035532,1707935446505,-166.86,0.00026479,2]
[314035534,1707935446514,-370.96,0.0002667,2]
[314035535,1707935446523,-1004.1,0.00026728,2]
[314035536,1707935446533,-1300.0,0.00027,3]
[314035537,1707935446545,-288.67,0.00027,2]
[314035538,1707935446554,-800.0,0.00027246,2]
[314035539,1707935446564,-155.0,0.00027397,2]
[314035540,1707935446573,-4305.83,0.00027397,2]
[314035541,1707935446582,-1000.0,0.000274,2]
[314035542,1707935446591,-4363.96843182,0.00027515,2]
[314035543,1707935446600,-416.95,0.00027534,2]
[314035544,1707935446610,-4305.83,0.00027556,2]
[314035545,1707935446619,-329.0,0.00027637,2]
[314035546,1707935446628,-4305.83,0.00027714,2]
[314035547,1707935446637,-4305.83,0.00027872,2]
[314035548,1707935446646,-150.0,0.00028,2]
[314035549,1707935446655,-4305.83,0.0002803,2]
[314035550,1707935446664,-373.84669234,0.00028149,2]
[314035551,1707935446674,-4305.83,0.00028189,2]
[314035552,1707935446683,-288.67,0.00028286,2]
[314035553,1707935446692,-5085.29343214,0.00028296,2]
[314035554,1707935446701,-4305.83,0.00028347,2]
[314035555,1707935446711,-166.86,0.00028362,2]
[314035556,1707935446720,-1415.48913822,0.00028364,28]
[314035557,1707935446729,-1004.1,0.00028372,2]
[314035558,1707935446739,-250.13,0.000284,2]
[314035559,1707935446749,-1000.0,0.000285,2]
[314035560,1707935446758,-4305.83,0.00028505,2]
[314035561,1707935446768,-4305.83,0.00028664,2]
[314035562,1707935446777,-155.0,0.00028767,2]
[314035563,1707935446787,-4305.83,0.00028822,2]
[314035564,1707935446797,-200.0,0.00028898,2]
[314035565,1707935446806,-370.96,0.00028934,2]
[314035566,1707935446819,-1350.0,0.00029,3]
[314035567,1707935446829,-4363.96843182,0.00029053,2]
[314035568,1707935446839,-329.0,0.00029281,2]
[314035569,1707935446848,-288.67,0.00029572,2]
[314035570,1707935446858,-195.66246106,0.00029897,2]
[314035571,1707935446867,-373.84669234,0.00029899,2]
[314035572,1707935446876,-43603.10870392,0.000299,3]
[314035573,1707935446891,-26063.99999998,0.000299,3]
[314035574,1707935446907,-513.07555839,0.000299,3]
[314035575,1707935446927,-3392.02701357,0.000299,3]
[314035576,1707935446939,-6802.33,0.000299,3]
[314035577,1707935446951,-58134.50604475,0.000299,3]
[314035578,1707935466228,264.0,0.00021962,2]
[314035579,1707935504546,500.0,0.00021797,2]
[314035580,1707935506292,250.0,0.00021918,2]
[314035581,1707935583215,502.15,0.00021797,2]
[314035582,1707935672750,2000.0,0.00021797,2]
[314035583,1707935691373,150.0,0.00021797,2]
[314035584,1707935694250,152.74,0.0002196,2]
[314035585,1707935735246,-472.5176,0.00022242,2]
[314035586,1707935735267,-165.75,0.0002245,2]
[314035587,1707935735288,-541.9039,0.000227,2]
[314035588,1707935735310,-160.52924829,0.000227,2]
[314035589,1707935735332,-383.96093533,0.0002279,2]
[314035590,1707935735354,-23760.3137,0.000228,2]
[314035591,1707935735376,-352.7045,0.000228,2]
[314035592,1707935735396,-99680.9552,0.000228,2]
[314035593,1707935735417,-1000.0,0.000228,2]
[314035594,1707935735440,-250.8272,0.000228,2]
[314035595,1707935735461,-1000.0,0.000228,2]
[314035596,1707935735482,-2270.9025,0.000228,2]
[314035597,1707935754902,226.4,0.00021797,2]
[314035598,1707935773474,680.0,0.00021797,2]
[314035599,1707935815778,164.96,0.00021797,2]
[314035600,1707935855471,356.35,0.00019879,2]
[314035601,1707935856615,356.35,0.00022143,2]
[314035602,1707935859330,161.62,0.00021797,2]
[314035603,1707935859593,161.62,0.00022886,2]
[314035605,1707935978144,191.75239969,0.00022772,2]
[314035610,1707936348117,198.82,0.00026831,120]
[314035614,1707936632289,-272.0,0.00023505,2]
[314035615,1707936632300,-34.123699,0.000238,2]
[314035616,1707936632313,-965.876301,0.000238,2]
[314035617,1707936632323,-161.62,0.00023976,2]
[314035618,1707936632333,-160.52924829,0.00024307,2]
[314035619,1707936632343,-3000.48,0.00024384,2]
[314035620,1707936632353,-680.0,0.00024521,2]
[314035621,1707936632363,-499.99,0.00024658,2]
[314035622,1707936632373,-320.71,0.00024913,2]
[314035623,1707936632383,-161.62,0.00025066,2]